bitfinex/quotes_ETHUSD_20251012
["timestamp","ask_amount","ask_price","bid_price","bid_amount"]
[1760242503199,0.6721,3817.9,3817.8,0.002]
[1760242504339,0.001,3818.1,3817.8,2.621301]
[1760242504543,0.4463,3818.0,3817.8,0.002]
[1760242504696,0.2258,3817.9,3817.8,0.002]
[1760242505032,0.55503369,3817.9,3817.8,0.002]
[1760242505248,1.00133369,3817.9,3817.8,0.002]
[1760242505431,0.2258,3817.9,3817.8,0.002]
[1760242505636,0.6721,3817.9,3817.8,0.002]
[1760242505830,3.29134094,3817.9,3817.8,0.002]
[1760242506035,0.6721,3817.9,3817.8,0.002]
[1760242506235,0.4463,3817.9,3817.8,2.62130955]
[1760242506606,0.001,3818.1,3817.8,2.62130955]
[1760242506607,0.001,3818.1,3817.8,0.002]
[1760242506807,0.2258,3817.9,3817.8,0.002]
[1760242507114,0.6721,3817.9,3817.8,0.002]
[1760242508513,0.1314,3818.1,3817.8,0.002]
[1760242508723,0.1314,3818.1,3818.0,2.61917234]
[1760242509417,0.1314,3818.1,3818.0,4.1633774]
[1760242509418,0.001,3818.1,3818.0,4.1633774]
[1760242509846,0.001,3818.1,3818.0,3.23596064]
[1760242510056,0.001,3818.1,3818.0,3.70816064]
[1760242510943,0.001,3818.1,3817.9,2.74960347]
[1760242511145,0.4463,3818.0,3817.8,0.93120664]
[1760242511315,0.6721,3817.9,3817.8,0.002]
[1760242512241,0.1314,3818.1,3817.8,0.002]
[1760242512753,0.2258,3817.9,3817.8,0.002]
[1760242513177,0.6721,3817.9,3817.8,0.002]
[1760242514541,0.4463,3817.9,3817.8,0.002]
[1760242514932,0.001,3818.1,3817.8,0.002]
[1760242515133,0.4463,3818.0,3817.8,0.002]
[1760242515345,0.001,3818.1,3817.8,0.002]
[1760242515346,0.4463,3817.9,3817.8,0.002]
[1760242516379,0.001,3818.0,3817.9,2.61924094]
[1760242517473,0.4473,3818.0,3817.8,0.002]
[1760242517674,0.4473,3818.0,3817.9,2.61924094]
[1760242518375,0.001,3818.0,3817.9,2.61924094]
[1760242520378,0.4473,3818.0,3817.9,2.61924094]
[1760242521892,0.001,3818.0,3817.9,3.24926328]
[1760242522482,0.001,3818.0,3817.9,4.78298856]
[1760242522943,0.001,3818.0,3817.9,3.85416328]
[1760242523147,0.001,3818.0,3817.9,5.24738329]
[1760242524860,0.001,3818.0,3817.9,4.77288329]
[1760242525058,0.001,3818.0,3817.9,2.74964094]
[1760242525259,0.4492,3818.0,3817.8,0.002]
[1760242525461,2.84734094,3817.9,3817.8,0.002]
[1760242525649,0.2281,3817.9,3817.8,0.002]
[1760242526001,0.1314,3818.0,3817.8,2.62129837]
[1760242526179,0.1314,3818.0,3817.9,2.61924094]
[1760242526380,0.1314,3818.0,3817.8,0.002]
[1760242526686,0.001,3818.0,3817.9,2.61924094]
[1760242527052,0.001,3818.0,3817.9,3.7236166]
[1760242527295,0.001,3818.0,3817.9,4.65139546]
[1760242527795,0.001,3818.0,3817.9,3.7236166]
[1760242528009,0.001,3818.0,3817.9,3.54718212]
[1760242528371,0.001,3818.0,3817.9,4.02168212]
[1760242528669,0.001,3818.0,3817.9,3.09374094]
[1760242529206,0.001,3818.0,3817.9,2.61924094]
[1760242529371,0.001,3818.0,3817.9,3.09374094]
[1760242530103,0.001,3818.0,3817.9,2.61924094]
[1760242530398,0.001,3818.0,3817.9,3.54658623]
[1760242532004,0.001,3818.0,3817.9,2.61924094]
[1760242532910,0.001,3818.0,3817.9,3.09374094]
[1760242533499,0.001,3818.0,3817.9,4.48696095]
[1760242533705,0.001,3818.0,3817.9,3.81761072]
[1760242534367,0.001,3818.0,3817.9,5.21283073]
[1760242534573,0.001,3818.0,3817.9,5.97683073]
[1760242534807,0.001,3818.0,3817.9,4.58361072]
[1760242535390,0.001,3818.0,3817.9,7.41979257]
[1760242535698,0.001,3818.0,3817.9,8.22654728]
[1760242537386,0.001,3818.0,3817.9,6.37321072]
[1760242545601,0.001,3818.0,3817.9,6.50361072]
[1760242545796,0.001,3818.0,3817.9,6.63561072]
[1760242546029,0.1304,3820.1,3820.0,2.61780104]
[1760242546215,0.003,3820.7,3820.4,2.61752696]
[1760242546415,0.003,3820.7,3820.4,2.61745981]
[1760242546600,0.003,3820.7,3820.3,2.61753751]
[1760242546805,0.4417,3820.6,3820.4,2.61752149]
[1760242547132,0.4417,3820.6,3820.3,2.61759051]
[1760242547712,0.4417,3820.5,3820.3,2.61759051]
[1760242548032,0.4417,3820.5,3819.7,0.92497758]
[1760242548336,0.4417,3820.4,3820.0,2.61779195]
[1760242548531,0.4417,3820.3,3819.4,0.92497758]
[1760242548742,0.4417,3820.3,3819.8,2.61792687]
[1760242548942,0.4417,3820.2,3819.7,2.61798243]
[1760242549235,0.4417,3820.2,3819.1,1.38917758]
[1760242549402,0.4417,3820.2,3819.3,2.61828083]
[1760242549740,0.003,3820.7,3819.4,2.61821228]
[1760242549912,0.4417,3820.6,3820.0,2.61773444]
[1760242550310,0.4417,3820.6,3820.1,2.61772957]
[1760242550517,0.4417,3820.5,3819.9,2.61780533]
[1760242550729,0.4417,3820.5,3820.1,2.61767863]
[1760242550928,0.4417,3820.4,3820.1,2.61767863]
[1760242551838,0.4415,3820.7,3820.1,2.61767863]
[1760242552205,0.74736693,3820.7,3820.2,2.61765969]
[1760242552405,0.74736693,3820.7,3820.1,2.61772423]
[1760242552406,0.4385,3820.6,3820.1,2.61772423]
[1760242552639,0.4385,3820.5,3820.0,2.61774443]
[1760242552848,0.4385,3820.4,3820.0,2.61774443]
[1760242553031,0.4385,3820.3,3819.2,1.06389534]
[1760242553236,0.4385,3820.3,3819.8,2.6178762]
[1760242553431,2.62037819,3820.7,3819.9,2.61786162]
[1760242553637,0.4385,3820.2,3820.0,2.61773931]
[1760242553836,0.4385,3820.5,3820.0,2.61773931]
[1760242554025,0.4385,3820.4,3820.0,2.61773931]
[1760242554228,0.4385,3820.3,3820.0,2.61773931]
[1760242555451,0.4385,3820.2,3819.9,2.61786061]
[1760242555758,0.4385,3820.1,3819.9,2.61786061]
[1760242555960,0.001,3820.6,3819.6,2.61806812]
[1760242555961,0.4385,3820.0,3819.6,2.61806812]
[1760242556162,2.61759339,3820.4,3818.9,0.92497758]
[1760242556163,0.6695,3819.9,3818.9,0.92497758]
[1760242556331,0.1304,3819.7,3819.3,2.61823283]
[1760242556530,0.4365,3819.6,3819.4,2.61820352]
[1760242556728,0.1304,3819.7,3819.6,2.61807519]
[1760242558118,0.5649,3819.7,3819.6,2.61807519]
[1760242558440,0.5649,3819.7,3818.9,0.92497758]
[1760242558441,2.6182854,3819.3,3818.5,2.61882391]
[1760242558645,0.69632854,3819.2,3818.2,2.6190117]
[1760242558840,0.4345,3819.1,3818.4,2.61883335]
[1760242559356,2.61855508,3818.9,3817.9,0.002]
[1760242559534,0.4345,3819.0,3817.9,0.002]
[1760242559930,0.4345,3819.4,3818.6,2.61873544]
[1760242560145,0.4345,3819.3,3818.7,2.61868892]
[1760242560322,0.4345,3819.3,3819.1,2.61839909]
[1760242560528,0.4345,3819.3,3819.1,2.61835559]
[1760242561018,0.4345,3819.2,3819.1,2.61835559]
[1760242561223,0.235,3819.9,3819.2,2.61834772]
[1760242561451,0.4345,3819.8,3818.9,2.61849422]
[1760242561754,0.4345,3819.7,3818.1,0.92497758]
[1760242561952,12.54461496,3819.4,3817.9,0.002]
[1760242562259,2.61862247,3818.9,3818.0,2.6191563]
[1760242562418,0.4345,3818.8,3817.9,0.002]
[1760242562617,0.4345,3818.8,3818.0,2.61917234]
[1760242562819,0.4345,3818.8,3817.9,0.002]
[1760242563025,0.4345,3818.8,3818.5,2.61882474]
[1760242563245,0.4345,3818.7,3817.9,2.62120824]
[1760242563560,0.4345,3818.6,3817.9,0.002]
[1760242563723,2.61888926,3818.5,3817.9,0.002]
[1760242563924,0.30533893,3818.4,3817.9,0.002]
[1760242564125,0.73983893,3818.4,3817.9,0.002]
[1760242564356,0.4345,3818.3,3817.9,0.002]
[1760242564860,0.4345,3818.2,3817.9,0.002]
[1760242565224,2.61884854,3818.5,3817.9,0.002]
[1760242565456,0.4345,3818.1,3817.9,0.002]
[1760242565972,0.4345,3818.0,3817.9,0.002]
[1760242567050,3.5919602,3819.9,3817.9,0.002]
[1760242567051,0.4345,3818.4,3817.9,0.002]
[1760242567267,0.4345,3818.4,3818.1,2.61909015]
[1760242567474,0.9740481,3819.9,3818.7,2.61865255]
[1760242567672,3.05257587,3819.6,3818.1,0.1594]
[1760242567873,0.4345,3819.6,3818.8,2.61859964]
[1760242568088,0.4345,3819.6,3818.1,0.1594]
[1760242568289,0.1304,3819.0,3818.4,0.1304]
[1760242568486,0.1304,3819.0,3818.9,2.61855508]
[1760242568652,0.4345,3819.5,3819.1,2.61840941]
[1760242568993,0.4345,3819.4,3818.1,1.08437758]
[1760242569161,0.235,3819.9,3818.9,2.61854661]
[1760242569361,0.4345,3819.8,3818.2,3.22332906]
[1760242569581,0.4345,3819.7,3818.3,2.61895074]
[1760242569767,0.4345,3819.6,3818.4,2.61889796]
[1760242570099,0.4345,3819.5,3817.9,0.002]
[1760242570276,2.6183296,3819.3,3818.1,2.61903849]
[1760242570453,2.61855101,3819.0,3818.1,2.61903849]
[1760242570787,0.4345,3818.9,3817.9,0.002]
[1760242571092,2.61889724,3818.5,3817.9,0.002]
[1760242571386,2.61891566,3818.4,3817.9,0.002]
[1760242571594,2.61897801,3818.3,3817.9,0.002]
[1760242571796,0.3053478,3818.2,3817.9,0.002]
[1760242571953,0.7398478,3818.2,3817.9,0.002]
[1760242572387,0.3053478,3818.2,3818.0,0.002]
[1760242572691,7.4945,3818.1,3818.0,0.002]
[1760242575197,10.11360374,3818.1,3818.0,0.002]
[1760242575361,11.41739725,3818.1,3818.0,0.002]
[1760242577294,8.79829351,3818.1,3818.0,0.002]
[1760242577468,7.4945,3818.1,3818.0,0.002]
[1760242578300,10.11360374,3818.1,3818.0,0.002]
[1760242582870,12.03360374,3818.1,3818.0,0.002]
[1760242583074,12.03360374,3818.1,3817.9,0.002]
[1760242583075,5.17297815,3817.7,3817.6,1e-08]
[1760242583272,6.72136006,3817.7,3817.6,1e-08]
[1760242583492,3.2532268,3817.4,3815.0,0.002]
[1760242583816,2.61978989,3817.1,3815.0,2.62322506]
[1760242583982,2.61978989,3817.1,3815.5,2.62086294]
[1760242584304,10.12348989,3817.1,3815.5,2.62086294]
[1760242584513,10.12348989,3817.1,3815.6,2.62081208]
[1760242585008,10.12348989,3817.1,3815.0,0.4734]
[1760242585202,10.12348989,3817.1,3815.4,2.62093699]
[1760242585373,10.12348989,3817.1,3815.0,0.002]
[1760242585571,12.67708989,3817.1,3815.2,2.62109027]
[1760242585806,15.40207116,3817.1,3815.0,0.002]
[1760242586508,15.40207116,3817.1,3815.3,2.62101609]
[1760242586702,15.40207116,3817.1,3815.4,2.62095054]
[1760242587183,15.40207116,3817.1,3815.1,2.62110687]
[1760242587504,15.40207116,3817.1,3815.1,2.62115684]
[1760242587703,15.40207116,3817.1,3815.2,2.62108299]
[1760242588214,15.40207116,3817.1,3815.0,0.002]
[1760242589005,15.40207116,3817.1,3815.0,2.62322724]
[1760242589182,15.40207116,3817.1,3815.0,0.002]
[1760242589507,2.62081799,3815.7,3815.0,0.002]
[1760242589817,0.2169,3815.1,3815.0,0.002]
[1760242590198,0.6779,3815.1,3815.0,0.002]
[1760242590982,3.628949,3815.1,3815.0,0.002]
[1760242591187,3.29906327,3815.1,3815.0,0.002]
[1760242591422,0.6779,3815.1,3815.0,0.002]
[1760242591654,0.461,3815.1,3815.0,2.62323197]
[1760242591921,0.2169,3815.4,3815.0,2.62323197]
[1760242592224,0.461,3815.3,3815.0,0.002]
[1760242592522,0.2169,3815.7,3815.0,0.002]
[1760242592715,0.461,3815.3,3815.0,0.002]
[1760242592901,0.461,3815.6,3815.0,0.002]
[1760242593106,2.83771043,3815.7,3815.0,0.002]
[1760242593107,0.461,3815.2,3815.0,0.002]
[1760242593479,0.461,3815.1,3815.0,0.002]
[1760242593677,0.1304,3815.3,3815.2,2.62104009]
[1760242594718,0.2169,3816.0,3815.3,2.6209913]
[1760242594924,0.1304,3815.6,3815.0,0.002]
[1760242595217,2.6207511,3815.7,3815.0,0.002]
[1760242595441,3.08189038,3815.5,3815.0,0.002]
[1760242595806,0.461,3815.4,3815.0,0.002]
[1760242596010,0.2169,3816.0,3815.0,0.002]
[1760242596011,0.461,3815.9,3815.0,0.002]
[1760242596244,0.2169,3816.0,3815.0,0.002]
[1760242596245,0.461,3815.7,3815.0,2.62321982]
[1760242596436,0.461,3815.7,3815.4,2.62094547]
[1760242596635,0.461,3815.6,3815.0,0.002]
[1760242597034,0.461,3815.6,3815.2,2.62108412]
[1760242597207,0.461,3815.5,3815.0,0.002]
[1760242597654,0.461,3815.5,3815.1,2.62114587]
[1760242597821,0.461,3815.4,3815.1,2.62114587]
[1760242598010,0.6779,3816.0,3815.3,2.62096778]
[1760242598222,0.6779,3816.0,3815.0,0.002]
[1760242598531,0.6779,3816.0,3815.6,2.62081425]
[1760242598718,0.461,3815.9,3815.5,2.62087779]
[1760242598924,0.2169,3816.9,3815.0,0.002]
[1760242599119,0.2169,3816.9,3815.3,2.62102586]
[1760242599342,0.2169,3816.9,3816.4,2.62023531]
[1760242599512,0.461,3816.8,3816.4,2.62023531]
[1760242599713,0.461,3816.7,3816.4,2.62023531]
[1760242600138,0.461,3816.6,3816.4,2.62023531]
[1760242600339,0.461,3816.5,3816.0,2.62052416]
[1760242600643,0.2169,3816.9,3816.0,0.26205242]
[1760242600845,0.2169,3816.9,3815.5,0.4714]
[1760242600846,0.461,3817.2,3816.9,2.61991783]
[1760242601348,0.461,3817.2,3817.1,2.61978989]
[1760242601519,0.461,3817.2,3816.1,4.65436443]
[1760242601719,0.461,3817.2,3816.7,2.62004697]
[1760242602046,0.2169,3817.3,3816.1,1.92]
[1760242602047,0.461,3817.1,3816.1,1.92]
[1760242602245,0.461,3817.0,3815.7,1.92]
[1760242602449,2.1369,3817.8,3817.0,2.61979903]
[1760242602625,0.461,3817.5,3817.0,2.61979903]
[1760242602953,0.461,3817.5,3815.7,0.6336]
[1760242603161,0.461,3817.4,3816.1,0.6336]
[1760242603454,0.461,3817.3,3817.0,2.61985533]
[1760242603662,0.4616,3817.2,3816.9,2.61992005]
[1760242603959,0.4616,3817.1,3816.9,2.61992005]
[1760242604158,0.4616,3817.0,3816.6,2.62012475]
[1760242604363,0.4616,3817.0,3815.7,1.92]
[1760242604364,0.4616,3816.9,3816.4,2.6202579]
[1760242604521,0.4616,3816.8,3816.4,2.6202579]
[1760242604839,0.4616,3816.7,3816.2,2.62040191]
[1760242605032,0.4616,3816.6,3815.1,0.92497758]
[1760242605258,0.1304,3816.0,3815.5,2.62088848]
[1760242605430,0.4616,3815.9,3815.5,2.62088848]
[1760242605631,0.1304,3815.7,3815.4,2.62094653]
[1760242605847,0.4616,3815.6,3815.4,2.62094653]
[1760242606178,0.4616,3815.5,3815.4,2.62095717]
[1760242606700,0.1304,3815.7,3815.4,2.62095717]
[1760242607040,0.592,3815.7,3815.6,2.62081979]
[1760242607366,0.4616,3816.4,3816.0,2.62048026]
[1760242607556,0.1304,3816.0,3815.8,2.6206205]
[1760242607759,0.1304,3816.0,3815.9,2.62061374]
[1760242609669,0.4616,3816.7,3815.7,2.62071605]
[1760242609867,0.78943315,3818.1,3816.6,2.62012377]
[1760242609868,0.4616,3817.3,3816.6,2.62012377]
[1760242610172,0.1304,3816.5,3816.4,2.62027041]
[1760242610503,0.2169,3817.8,3817.5,2.61946557]
[1760242610774,0.001,3817.4,3817.3,2.61965263]
[1760242619903,0.4381,3817.4,3816.2,0.4564]
[1760242620078,0.4381,3817.4,3816.1,0.1139]
[1760242620269,0.1304,3817.1,3816.8,2.61998232]
[1760242620469,0.4371,3817.0,3816.4,0.1304]
[1760242620886,0.1304,3816.6,3815.9,0.1304]
[1760242621087,0.4371,3816.5,3816.0,2.62049323]
[1760242621286,0.4371,3816.4,3816.1,2.62044244]
[1760242621467,0.4371,3816.3,3816.1,2.62044244]
[1760242621663,0.4381,3817.4,3816.1,0.65105161]
[1760242621897,0.4381,3817.4,3816.2,0.1304]
[1760242621898,0.1304,3816.9,3816.2,0.1304]
[1760242622139,0.1304,3816.6,3816.0,0.1304]
[1760242622324,0.1304,3816.9,3816.2,0.1304]
[1760242622522,0.1304,3816.9,3816.8,2.6199958]
[1760242622705,0.001,3817.4,3816.5,2.3764]
[1760242623032,0.001,3817.4,3817.3,2.61965263]
[1760242623906,0.001,3817.4,3816.6,0.4564]
[1760242624107,0.001,3817.4,3816.9,2.61985913]
[1760242624297,0.001,3817.4,3817.1,2.61977094]
[1760242625013,0.001,3817.4,3817.0,1.92]
[1760242625213,0.4371,3817.3,3816.9,4.53986113]
[1760242625414,0.4371,3817.2,3816.9,2.61986113]
[1760242626432,0.001,3817.4,3817.0,2.61985021]
[1760242626628,0.001,3817.4,3817.1,2.61976617]
[1760242627341,0.75041,3817.4,3817.1,2.61976617]
[1760242628403,0.75041,3817.4,3817.0,2.61984278]
[1760242629111,0.001,3817.4,3817.3,2.61965263]
[1760242629925,0.001,3817.4,3817.1,2.61972426]
[1760242631667,0.001,3817.4,3817.2,2.619714]
[1760242631861,0.001,3817.4,3817.3,2.61965263]
[1760242632763,0.001,3817.4,3817.3,2.75005263]
[1760242632947,0.001,3817.4,3817.3,3.20645263]
[1760242633123,0.001,3817.4,3817.3,3.84005263]
[1760242635068,0.001,3817.4,3817.3,5.76005263]
[1760242635271,0.001,3817.4,3817.3,8.12424906]
[1760242635965,0.001,3817.4,3817.3,6.73678269]
[1760242636729,0.001,3818.5,3817.3,6.73678269]
[1760242636730,0.001,3818.5,3818.4,2.61889796]
[1760242637153,0.001,3818.5,3818.4,3.07529796]
[1760242637352,0.001,3818.5,3818.4,4.99529796]
[1760242637594,0.001,3818.5,3818.4,7.48677719]
[1760242637761,0.001,3818.5,3818.4,19.08766491]
[1760242638086,0.4401,3821.9,3820.6,2.61738993]
[1760242638276,4.53658877,3821.8,3820.6,2.61738993]
[1760242638451,2.61658877,3821.8,3820.6,2.61738993]
[1760242638657,0.4371,3821.6,3820.6,2.61738993]
[1760242639497,0.003,3821.9,3820.6,3.70738993]
[1760242640180,0.2224,3821.9,3820.6,3.70738993]
[1760242642398,0.003,3821.9,3820.6,3.70738993]
[1760242642708,0.003,3821.9,3820.6,5.62738993]
[1760242642884,0.003,3821.9,3820.6,6.02774888]
[1760242643259,0.003,3821.9,3821.5,2.61672306]
[1760242643595,0.003,3821.9,3821.8,2.6165681]
[1760242643957,0.003,3821.9,3821.8,3.0591681]
[1760242644159,0.003,3821.9,3821.8,3.6927681]
[1760242644385,0.003,3821.9,3821.8,6.24371158]
[1760242644778,1e-08,3821.9,3821.8,6.24371158]
[1760242646781,1e-08,3821.9,3821.8,6.37411158]
[1760242646996,1e-08,3821.9,3821.8,6.24371158]
[1760242647437,0.00100001,3821.9,3821.8,6.24371158]
[1760242649517,1e-08,3822.7,3822.6,3.2496205]
[1760242649714,1e-08,3822.7,3822.6,5.49458255]
[1760242650006,1e-08,3822.7,3822.6,5.93718255]
[1760242654318,1e-08,3822.7,3822.6,18.92573779]
[1760242654712,1e-08,3822.7,3822.6,4.01718255]
[1760242654912,1e-08,3822.7,3822.6,5.93718255]
[1760242655533,1e-08,3822.7,3822.6,4.01718255]
[1760242655749,1e-08,3822.7,3822.6,3.0586205]
[1760242655897,1e-08,3822.7,3822.6,0.4426]
[1760242656098,1e-08,3822.7,3822.6,3.0586205]
[1760242656803,1e-08,3822.7,3822.3,2.61622174]
[1760242657035,1e-08,3822.7,3822.6,2.7464205]
[1760242657232,1e-08,3822.7,3822.6,3.28267563]
[1760242657437,1e-08,3822.7,3822.6,3.72527563]
[1760242657804,0.006,3823.5,3823.4,2.61547313]
[1760242659743,0.006,3823.5,3823.4,3.05807313]
[1760242659916,0.006,3823.5,3823.0,2.61569444]
[1760242660237,0.006,3823.5,3822.6,0.53625513]
[1760242660437,0.006,3823.5,3822.9,2.61575776]
[1760242660438,0.4542,3823.5,3822.9,2.61575776]
[1760242660639,0.4482,3823.4,3821.8,0.1492]
[1760242660811,2.61578162,3823.0,3822.1,2.61636053]
[1760242661010,3.58711394,3823.0,3822.1,2.61636053]
[1760242661256,0.97133232,3823.0,3822.2,2.61629093]
[1760242661436,0.97133232,3823.0,3822.0,3.07070567]
[1760242661437,0.52313232,3823.0,3822.0,3.07070567]
[1760242661607,0.4684,3823.4,3822.3,2.61621736]
[1760242661807,2.61569165,3823.1,3822.2,2.61628195]
[1760242662047,2.61577536,3823.0,3822.2,2.61628195]
[1760242662346,2.61577536,3823.0,3822.1,2.61636005]
[1760242662518,3.18575456,3823.0,3822.1,2.61636005]
[1760242662715,0.006,3823.5,3822.8,2.61582364]
[1760242662919,0.006,3823.5,3822.4,2.61610362]
[1760242662920,0.4684,3823.4,3822.4,2.61610362]
[1760242663130,3.08394505,3823.3,3822.4,2.61613995]
[1760242663730,0.4684,3823.2,3821.8,0.1492]
[1760242663947,3.08402169,3823.2,3821.8,2.76575084]
[1760242664241,2.6158268,3822.9,3822.0,2.61639612]
[1760242664612,2.6158268,3822.9,3822.1,2.61635484]
[1760242664807,2.6158268,3822.9,3821.8,0.1492]
[1760242665012,2.6158268,3822.9,3820.1,2.61769495]
[1760242665013,2.61595277,3822.7,3821.9,2.61649444]
[1760242665215,2.61595277,3822.7,3822.4,0.002]
[1760242665542,3.39285853,3822.6,3822.4,0.002]
[1760242666045,0.4684,3822.5,3822.4,0.002]
[1760242668054,3.21488894,3822.5,3822.4,0.002]
[1760242672714,5.13488894,3822.5,3822.4,0.002]
[1760242673350,5.00448894,3822.5,3822.4,0.002]
[1760242673549,5.79738078,3822.5,3822.4,0.002]
[1760242677160,18.3214198,3822.5,3822.4,0.002]
[1760242677862,5.79738078,3822.5,3822.4,0.002]
[1760242678931,18.3214198,3822.5,3822.4,0.002]
[1760242679140,5.79738078,3822.5,3822.4,0.002]
[1760242681635,6.43098078,3822.5,3822.4,0.002]
[1760242681936,6.43098078,3822.5,3821.6,0.002]
[1760242681937,4.53663657,3821.7,3821.6,0.002]
[1760242682136,4.99030023,3821.7,3821.6,0.002]
[1760242682357,5.46510023,3821.7,3821.6,0.002]
[1760242684141,12.52110023,3821.7,3821.6,0.002]
[1760242684740,10.60110023,3821.7,3821.6,0.002]
[1760242685652,7.98446366,3821.7,3821.6,0.002]
[1760242685858,7.056,3821.7,3821.6,0.002]
[1760242686232,7.5308,3821.7,3821.6,0.002]
[1760242686473,10.14743657,3821.7,3821.6,0.002]
[1760242688531,7.056,3821.7,3821.6,0.002]
[1760242688737,10.14743657,3821.7,3821.6,0.002]
[1760242688974,11.44535452,3821.7,3821.6,0.002]
[1760242690199,8.82871795,3821.7,3821.6,0.002]
[1760242691580,11.44535452,3821.7,3821.6,0.002]
[1760242691888,8.82871795,3821.7,3821.6,0.002]
[1760242692089,11.44535452,3821.7,3821.6,0.002]
[1760242692488,8.82871795,3821.7,3821.6,0.002]
[1760242692789,0.2152,3821.9,3821.6,0.002]
[1760242693190,0.4748,3821.8,3821.6,0.002]
[1760242693696,0.4748,3821.7,3821.6,0.002]
[1760242694489,3.09143657,3821.7,3821.6,0.002]
[1760242694791,5.60375461,3821.7,3821.6,0.002]
[1760242695167,5.60375461,3821.7,3821.2,0.002]
[1760242695168,4.53691047,3821.3,3821.2,0.002]
[1760242695671,2.3948,3821.3,3821.2,0.002]
[1760242696152,0.4748,3821.3,3821.2,0.002]
[1760242696358,0.4748,3821.7,3821.2,0.002]
[1760242696555,0.2152,3821.9,3821.2,0.002]
[1760242696780,0.1304,3821.5,3821.3,2.61690386]
[1760242696987,0.1304,3821.5,3821.4,2.61684199]
[1760242698197,0.4748,3822.1,3821.2,0.002]
[1760242698354,0.4748,3822.5,3821.2,0.40345991]
[1760242698561,0.4748,3822.5,3821.3,3.09071047]
[1760242698758,0.4748,3822.9,3822.3,2.61616874]
[1760242698962,0.4748,3822.9,3821.4,0.4738]
[1760242699262,0.4748,3822.9,3822.3,2.61622303]
[1760242699878,0.4748,3822.9,3822.2,2.6162895]
[1760242700195,0.4748,3822.9,3821.7,0.4738]
[1760242700392,0.001,3823.1,3821.9,2.61644345]
[1760242700692,0.4748,3822.9,3821.9,2.61644345]
[1760242700901,0.4748,3822.9,3822.2,2.61628361]
[1760242701697,2.61576218,3823.0,3822.2,2.61628361]
[1760242701905,2.61576218,3823.0,3822.1,2.6163604]
[1760242701906,0.4333,3822.7,3822.1,2.6163604]
[1760242702288,0.001,3822.7,3822.6,2.6160205]
[1760242704708,0.001,3822.7,3822.5,2.61608091]
[1760242706210,0.001,3822.7,3821.7,0.4334]
[1760242706521,0.001,3822.7,3822.3,2.61620431]
[1760242707527,0.001,3822.7,3822.5,2.61607628]
[1760242707675,0.001,3822.7,3822.4,3.04954549]
[1760242707880,0.1314,3822.7,3822.2,2.61629428]
[1760242708083,0.1314,3822.7,3822.1,2.74675797]
[1760242708320,0.1314,3822.7,3822.4,2.6160905]
[1760242708918,0.1314,3822.7,3822.5,2.61605581]
[1760242709089,0.1314,3822.7,3822.6,2.6160205]
[1760242709417,0.1314,3822.7,3822.5,2.61608302]
[1760242710019,0.1314,3822.7,3822.3,2.61615865]
[1760242710216,0.1314,3822.7,3822.4,2.61612666]
[1760242710517,0.1314,3822.7,3822.2,2.61628445]
[1760242710689,0.1314,3822.7,3822.5,2.61606831]
[1760242710890,0.1314,3822.7,3822.6,2.6160205]
[1760242711085,0.1314,3822.7,3822.5,2.61608485]
[1760242711721,0.1314,3822.7,3822.6,2.6160205]
[1760242711722,0.001,3822.7,3822.6,2.6160205]
[1760242712040,0.001,3822.7,3822.6,3.0494205]
[1760242712225,0.001,3822.7,3822.6,3.62901384]
[1760242712402,0.001,3822.7,3822.6,3.75941384]
[1760242713212,0.001,3822.7,3822.6,2.7464205]
[1760242713924,0.001,3822.7,3822.6,3.1798205]
[1760242714122,0.001,3822.7,3822.6,2.7464205]
[1760242716856,0.001,3822.7,3822.6,0.1304]
[1760242717067,0.001,3822.7,3822.6,2.7464205]
[1760242717775,0.001,3822.7,3822.4,2.61613289]
[1760242717776,0.4333,3822.7,3821.6,0.002]
[1760242717935,0.4333,3822.7,3821.7,2.61663657]
[1760242718122,0.4323,3822.6,3821.7,2.61663657]
[1760242718443,0.4323,3822.6,3821.6,0.002]
[1760242718645,3.04833238,3822.6,3821.8,2.61654457]
[1760242718956,0.73723324,3822.5,3821.6,0.002]
[1760242719168,0.4323,3822.5,3821.9,2.61647869]
[1760242719323,0.001,3822.7,3822.2,2.61626373]
[1760242719663,0.001,3822.7,3822.6,2.6160205]
[1760242720069,0.001,3822.7,3822.6,3.0494205]
[1760242721655,0.001,3822.7,3822.0,0.92174333]
[1760242721857,0.001,3822.7,3821.9,0.4636]
[1760242722370,0.001,3822.7,3822.6,2.6160205]
[1760242722768,0.001,3822.7,3822.6,3.0796205]
[1760242723175,0.001,3822.7,3822.6,2.6160205]
[1760242724778,0.001,3822.7,3821.9,0.40039721]
[1760242724779,0.001,3822.7,3821.9,1.32214054]
[1760242724982,0.001,3822.7,3822.4,2.61610031]
[1760242725440,0.4497,3822.6,3822.1,2.61629555]
[1760242725640,0.4497,3822.5,3821.6,0.002]
[1760242725846,2.61615738,3822.4,3821.6,0.002]
[1760242726048,0.30658574,3822.3,3821.6,0.002]
[1760242726246,3.37254051,3822.3,3821.6,0.002]
[1760242726743,0.75628574,3822.3,3821.6,2.61868268]
[1760242726991,0.001,3822.7,3821.6,0.002]
[1760242727195,0.001,3822.7,3821.7,0.4636]
[1760242727781,0.001,3822.7,3822.6,2.6160205]
[1760242727942,0.001,3822.7,3822.4,2.61610449]
[1760242728146,0.001,3822.7,3822.2,0.1304]
[1760242728343,0.4507,3822.7,3822.2,0.1304]
[1760242728586,0.4497,3822.6,3822.2,0.1304]
[1760242728749,0.1304,3822.2,3821.6,0.1324]
[1760242728946,0.1304,3822.2,3821.7,2.61660229]
[1760242729182,0.1304,3822.2,3821.9,2.61648571]